fUST/lending_fUST_20250523
["ID","MTS","AMOUNT","RATE_DAILY","PERIOD"]
[362118695,1748003458921,-430.0,0.00020188,2]
[362118697,1748003458931,-430.0,0.00020188,2]
[362118699,1748003458940,-430.0,0.00020188,2]
[362118701,1748003458950,-399.88265152,0.00020193,2]
[362118703,1748003458959,-532.95566831,0.00020194,2]
[362118705,1748003458969,-430.0,0.00020194,2]
[362118707,1748003458979,-430.0,0.00020194,2]
[362118709,1748003458988,-430.0,0.00020194,2]
[362118711,1748003458998,-177.01533246,0.00020194,2]
[362118713,1748003459008,-430.0,0.00020194,2]
[362118715,1748003459017,-430.0,0.00020194,2]
[362118717,1748003459026,-430.0,0.00020194,2]
[362118719,1748003459036,-430.0,0.00020194,2]
[362118721,1748003459045,-430.0,0.00020194,2]
[362118723,1748003459055,-430.0,0.00020194,2]
[362118725,1748003459065,-443.32219875,0.00020194,2]
[362118727,1748003459074,-430.0,0.00020194,2]
[362118728,1748003459084,-430.0,0.00020194,2]
[362118729,1748003459093,-430.0,0.00020194,2]
[362118730,1748003459103,-430.0,0.00020194,2]
[362118731,1748003459112,-430.0,0.00020194,2]
[362118732,1748003459122,-242.71,0.00020194,2]
[362118733,1748003459131,-430.0,0.00020194,2]
[362118734,1748003459140,-430.0,0.00020194,2]
[362118735,1748003459150,-811.46,0.00020194,2]
[362118736,1748003459167,-276.95,0.00020194,2]
[362118737,1748003459176,-430.0,0.00020194,2]
[362118738,1748003459187,-430.0,0.00020194,2]
[362118739,1748003459196,-430.0,0.00020194,2]
[362118740,1748003459207,-527.9897424,0.00020194,2]
[362118741,1748003459216,-430.0,0.00020194,2]
[362118742,1748003459227,-430.0,0.00020194,2]
[362118746,1748003459316,-430.0,0.00020194,2]
[362118748,1748003459326,-430.0,0.00020194,2]
[362118749,1748003459338,-430.0,0.00020194,2]
[362118751,1748003459350,-430.0,0.00020194,2]
[362118753,1748003459360,-430.0,0.00020194,2]
[362118755,1748003459370,-430.0,0.00020194,2]
[362118756,1748003459380,-430.0,0.00020194,2]
[362118757,1748003459389,-430.0,0.00020194,2]
[362118758,1748003459399,-430.0,0.00020194,2]
[362118759,1748003459409,-430.0,0.00020194,2]
[362118760,1748003459420,-430.0,0.00020194,2]
[362118761,1748003459430,-430.0,0.00020194,2]
[362118762,1748003459440,-430.0,0.00020194,2]
[362118763,1748003459450,-430.0,0.00020194,2]
[362118764,1748003459459,-430.0,0.00020194,2]
[362118765,1748003459470,-430.0,0.00020194,2]
[362118766,1748003459480,-430.0,0.00020194,2]
[362118767,1748003459490,-430.0,0.00020194,2]
[362118768,1748003459499,-430.0,0.00020194,2]
[362118769,1748003459509,-577.75,0.00020194,2]
[362118770,1748003459518,-430.0,0.00020194,2]
[362118771,1748003459528,-430.0,0.00020194,2]
[362118772,1748003459538,-430.0,0.00020194,2]
[362118773,1748003459548,-430.0,0.00020194,2]
[362118774,1748003459558,-430.0,0.00020194,2]
[362118776,1748003459570,-430.0,0.00020194,2]
[362118777,1748003459584,-430.0,0.00020194,2]
[362118779,1748003459594,-467.83,0.00020194,2]
[362118781,1748003459604,-426.87336436,0.00020194,2]
[362118783,1748003459614,-430.0,0.00020194,2]
[362118785,1748003459623,-430.0,0.00020194,2]
[362118787,1748003459633,-430.0,0.00020194,2]
[362118789,1748003459643,-430.0,0.00020194,2]
[362118791,1748003459653,-430.0,0.00020194,2]
[362118793,1748003459666,-375.3042592,0.00020194,2]
[362118795,1748003459676,-430.0,0.00020194,2]
[362118798,1748003459686,-500.0,0.00020212,2]
[362118799,1748003459696,-500.0,0.00020212,2]
[362118802,1748003459707,-430.0,0.00020264,2]
[362118804,1748003459717,-430.0,0.00020264,2]
[362118806,1748003459727,-430.0,0.00020264,2]
[362118808,1748003459736,-1064.45,0.00020264,2]
[362118810,1748003459746,-430.0,0.00020264,2]
[362118812,1748003459756,-430.0,0.00020264,2]
[362118814,1748003459767,-430.0,0.00020264,2]
[362118816,1748003459776,-1011.58,0.00020264,2]
[362118818,1748003459787,-430.0,0.00020264,2]
[362118820,1748003459797,-430.0,0.00020264,2]
[362118822,1748003459807,-430.0,0.00020264,2]
[362118824,1748003459816,-430.0,0.00020265,2]
[362118826,1748003459825,-964.4,0.00020265,2]
[362118828,1748003459835,-430.0,0.00020265,2]
[362118830,1748003459844,-826.88,0.00020265,2]
[362118832,1748003459853,-430.0,0.00020265,2]
[362118834,1748003459863,-430.0,0.00020265,2]
[362118836,1748003459873,-430.0,0.00020265,2]
[362118838,1748003459883,-430.0,0.00020265,2]
[362118840,1748003459892,-430.0,0.00020265,2]
[362118842,1748003459902,-430.0,0.00020265,2]
[362118844,1748003459912,-430.0,0.00020265,2]
[362118845,1748003459922,-430.0,0.00020265,2]
[362118847,1748003459932,-430.0,0.00020265,2]
[362118850,1748003459943,-408.69212648,0.00020265,2]
[362118852,1748003459953,-430.0,0.00020265,2]
[362118854,1748003459963,-430.0,0.00020265,2]
[362118856,1748003459972,-551.63544977,0.00020265,2]
[362118858,1748003459982,-430.0,0.00020265,2]
[362118860,1748003459992,-430.0,0.00020265,2]
[362118862,1748003460002,-430.0,0.00020265,2]
[362118864,1748003460012,-430.0,0.00020265,2]
[362118866,1748003460023,-430.0,0.00020265,2]
[362118868,1748003460033,-485.59997574,0.00020314,3]
[362118870,1748003460044,-4000.0,0.00020348,4]
[362118872,1748003460055,-587.0,0.00020457,2]
[362118874,1748003460066,-389.36437566,0.00020462,2]
[362118876,1748003460076,-430.0,0.00020462,2]
[362118878,1748003460087,-431.15316699,0.00020462,2]
[362118880,1748003460098,-497.58375279,0.00020462,2]
[362118882,1748003460108,-430.0,0.00020462,2]
[362118884,1748003460118,-432.36761153,0.00020462,2]
[362118886,1748003460128,-430.0,0.00020462,2]
[362118888,1748003460140,-430.0,0.00020462,2]
[362118890,1748003460149,-430.0,0.00020462,2]
[362118892,1748003460162,-430.0,0.00020462,2]
[362118894,1748003460176,-430.0,0.00020462,2]
[362118896,1748003460186,-430.0,0.00020462,2]
[362118898,1748003460196,-430.0,0.00020462,2]
[362118900,1748003460206,-430.0,0.00020462,2]
[362118902,1748003460217,-430.0,0.00020462,2]
[362118904,1748003460227,-430.0,0.00020462,2]
[362118906,1748003460238,-430.0,0.00020462,2]
[362118908,1748003460249,-430.0,0.00020462,2]
[362118910,1748003460259,-430.0,0.00020462,2]
[362118912,1748003460269,-430.0,0.00020462,2]
[362118914,1748003460279,-430.0,0.00020462,2]
[362118916,1748003460290,-430.0,0.00020462,2]
[362118918,1748003460300,-151.86,0.00020462,2]
[362118920,1748003460310,-430.0,0.00020462,2]
[362118922,1748003460320,-430.0,0.00020462,2]
[362118923,1748003460330,-430.0,0.00020462,2]
[362118925,1748003460340,-200.05047869,0.00020462,2]
[362118926,1748003460350,-430.0,0.00020462,2]
[362118927,1748003460360,-430.0,0.00020462,2]
[362118929,1748003460370,-430.0,0.00020462,2]
[362118931,1748003460380,-430.0,0.00020462,2]
[362118933,1748003460390,-430.0,0.00020462,2]
[362118935,1748003460400,-466.98220325,0.00020462,2]
[362118937,1748003460413,-505.57351198,0.00020462,2]
[362118939,1748003460424,-430.0,0.00020462,2]
[362118941,1748003460434,-430.0,0.00020462,2]
[362118943,1748003460445,-430.0,0.00020462,2]
[362118945,1748003460455,-430.0,0.00020462,2]
[362118955,1748003460545,-430.0,0.00020462,2]
[362118957,1748003460557,-325.54942425,0.00020462,2]
[362118960,1748003460568,-430.0,0.00020462,2]
[362118962,1748003460577,-430.0,0.00020462,2]
[362118964,1748003460587,-430.0,0.00020462,2]
[362118966,1748003460597,-430.0,0.00020462,2]
[362118968,1748003460606,-430.0,0.00020462,2]
[362118970,1748003460616,-376.92074875,0.00020462,2]
[362118972,1748003460625,-430.0,0.00020462,2]
[362118974,1748003460634,-430.0,0.00020462,2]
[362118975,1748003460645,-242.62907069,0.00020462,2]
[362118977,1748003460657,-158.6,0.00020462,2]
[362118979,1748003460671,-430.0,0.00020462,2]
[362118981,1748003460681,-430.0,0.00020462,2]
[362118982,1748003460690,-430.0,0.00020462,2]
[362118983,1748003460701,-430.0,0.00020462,2]
[362118984,1748003460712,-430.0,0.00020462,2]
[362118985,1748003460722,-428.16065747,0.00020462,2]
[362118986,1748003460732,-430.0,0.00020462,2]
[362118987,1748003460742,-430.0,0.00020462,2]
[362118988,1748003460752,-161.76830321,0.00020462,2]
[362118989,1748003460763,-430.0,0.00020462,2]
[362118990,1748003460773,-430.0,0.00020462,2]
[362118991,1748003460783,-430.0,0.00020462,2]
[362118992,1748003460793,-430.0,0.00020462,2]
[362118993,1748003460803,-430.0,0.00020462,2]
[362118994,1748003460813,-430.0,0.00020462,2]
[362118995,1748003460823,-293.9319657,0.00020462,2]
[362118996,1748003460833,-430.0,0.00020462,2]
[362118997,1748003460844,-400.0,0.00020462,2]
[362118998,1748003460855,-283.88892207,0.00020462,2]
[362118999,1748003460865,-430.0,0.00020462,2]
[362119000,1748003460875,-234.64652594,0.00020462,2]
[362119001,1748003460886,-430.0,0.00020462,2]
[362119002,1748003460897,-430.0,0.00020462,2]
[362119003,1748003460907,-430.0,0.00020462,2]
[362119004,1748003460921,-446.63,0.00020462,2]
[362119005,1748003460931,-430.0,0.00020462,2]
[362119006,1748003460941,-430.0,0.00020462,2]
[362119007,1748003460952,-345.09752478,0.00020462,2]
[362119008,1748003460962,-430.0,0.00020462,2]
[362119009,1748003460972,-370.0,0.00020462,2]
[362119010,1748003460982,-430.0,0.00020462,2]
[362119011,1748003460992,-430.0,0.00020462,2]
[362119012,1748003461002,-430.0,0.00020462,2]
[362119013,1748003461011,-400.0,0.00020462,2]
[362119014,1748003461021,-435.45315207,0.00020462,2]
[362119015,1748003461030,-430.0,0.00020462,2]
[362119016,1748003461040,-430.0,0.00020462,2]
[362119017,1748003461050,-430.0,0.00020462,2]
[362119018,1748003461060,-455.15,0.00020462,2]
[362119019,1748003461070,-430.0,0.00020462,2]
[362119020,1748003461097,-330.0,0.00020462,2]
[362119021,1748003461118,-430.0,0.00020462,2]
[362119022,1748003461141,-330.0,0.00020462,2]
[362119023,1748003461166,-430.0,0.00020462,2]
[362119024,1748003461190,-504.06,0.00020462,2]
[362119025,1748003461211,-296.02868599,0.00020462,2]
[362119026,1748003461232,-292.60178299,0.00020462,2]
[362119027,1748003461250,-430.0,0.00020462,2]
[362119028,1748003461269,-526.19,0.00020462,2]
[362119029,1748003461290,-430.0,0.00020462,2]
[362119030,1748003461315,-430.0,0.00020462,2]
[362119031,1748003461333,-430.0,0.00020462,2]
[362119032,1748003461351,-430.0,0.00020462,2]
[362119033,1748003461371,-1.25921031,0.00020462,2]
[362119034,1748003461591,-438.74078969,0.00020462,2]
[362119035,1748003461602,-430.0,0.00020462,2]
[362119036,1748003461612,-440.0,0.00020462,2]
[362119037,1748003461622,-430.0,0.00020462,2]
[362119038,1748003461632,-541.99125541,0.00020462,2]
[362119039,1748003461642,-430.0,0.00020462,2]
[362119040,1748003461652,-440.0,0.00020462,2]
[362119041,1748003461663,-240.0,0.00020462,2]
[362119042,1748003461673,-430.0,0.00020462,2]
[362119043,1748003461683,-430.0,0.00020462,2]
[362119044,1748003461693,-430.0,0.00020462,2]
[362119045,1748003461703,-141.2175854,0.00020462,2]
[362119046,1748003461715,-98.7824146,0.00020462,2]
[362119047,1748003461924,-430.0,0.00020462,2]
[362119048,1748003461943,-430.0,0.00020462,2]
[362119049,1748003461955,-257.60567447,0.00020462,2]
[362119050,1748003461966,-175.3832225,0.00020462,2]
[362119051,1748003461975,-430.0,0.00020462,2]
[362119052,1748003461986,-430.0,0.00020462,2]
[362119053,1748003461996,-318.03957998,0.00020462,2]
[362119054,1748003462006,-371.71457513,0.00020462,2]
[362119055,1748003462017,-571.85933181,0.00020462,2]
[362119056,1748003462027,-430.0,0.00020462,2]
[362119057,1748003462037,-545.93330801,0.00020462,2]
[362119058,1748003462047,-330.58618859,0.00020462,2]
[362119059,1748003462058,-430.0,0.00020462,2]
[362119060,1748003462068,-430.0,0.00020462,2]
[362119061,1748003462078,-430.0,0.00020462,2]
[362119062,1748003462089,-390.0,0.00020462,2]
[362119063,1748003462099,-430.0,0.00020462,2]
[362119064,1748003462109,-314.53787072,0.00020462,2]
[362119065,1748003462120,-430.0,0.00020462,2]
[362119066,1748003462131,-430.0,0.00020462,2]
[362119067,1748003462141,-347.03956283,0.00020462,2]
[362119068,1748003462152,-231.29,0.00020462,2]
[362119069,1748003462167,-430.0,0.00020462,2]
[362119070,1748003462177,-430.0,0.00020462,2]
[362119071,1748003462188,-499.14823272,0.00020462,2]
[362119072,1748003462199,-220.31,0.00020462,2]
[362119073,1748003462210,-430.0,0.00020462,2]
[362119074,1748003462220,-430.0,0.00020462,2]
[362119075,1748003462231,-430.0,0.00020462,2]
[362119076,1748003462242,-430.0,0.00020462,2]
[362119077,1748003462254,-430.0,0.00020462,2]
[362119078,1748003462264,-430.0,0.00020462,2]
[362119079,1748003462275,-430.0,0.00020462,2]
[362119080,1748003462287,-430.0,0.00020462,2]
[362119081,1748003462297,-214.34326414,0.00020462,2]
[362119082,1748003462308,-373.28927229,0.00020462,2]
[362119083,1748003462319,-430.0,0.00020462,2]
[362119084,1748003462329,-430.0,0.00020462,2]
[362119085,1748003462341,-293.6528158,0.00020462,2]
[362119086,1748003462351,-430.0,0.00020468,2]
[362119087,1748003462361,-343.42695898,0.00020468,2]
[362119088,1748003462371,-430.0,0.00020468,2]
[362119089,1748003462381,-430.0,0.00020468,2]
[362119090,1748003462391,-383.22753536,0.00020468,2]
[362119091,1748003462401,-341.35,0.00020468,2]
[362119092,1748003462413,-430.0,0.00020468,2]
[362119093,1748003462424,-444.89,0.00020468,2]
[362119094,1748003462434,-517.76,0.00020468,2]
[362119095,1748003462446,-364.63,0.00020468,2]
[362119096,1748003462456,-430.0,0.00020468,2]
[362119097,1748003462466,-430.0,0.00020468,2]
[362119098,1748003462475,-269.65266744,0.00020468,2]
[362119099,1748003462485,-430.0,0.00020468,2]
[362119100,1748003462495,-292.91,0.00020468,2]
[362119101,1748003462505,-430.0,0.00020468,2]
[362119102,1748003462514,-811.46,0.00020468,2]
[362119103,1748003462524,-430.0,0.00020468,2]
[362119104,1748003462534,-430.0,0.00020468,2]
[362119105,1748003462544,-430.0,0.00020468,2]
[362119106,1748003462554,-430.0,0.00020468,2]
[362119107,1748003462565,-269.94149027,0.00020468,2]
[362119108,1748003462578,-160.05850973,0.00020468,2]
[362119109,1748003462587,-430.0,0.00020468,2]
[362119110,1748003462597,-430.0,0.00020468,2]
[362119111,1748003462607,-430.0,0.00020468,2]
[362119112,1748003462617,-254.09950295,0.00020468,2]
[362119113,1748003462626,-430.0,0.00020468,2]
[362119114,1748003462636,-430.0,0.00020468,2]
[362119115,1748003462646,-430.0,0.00020468,2]
[362119116,1748003462656,-430.0,0.00020468,2]
[362119117,1748003462670,-430.0,0.00020468,2]
[362119118,1748003462679,-430.0,0.00020468,2]
[362119119,1748003462689,-532.70920145,0.00020468,2]
[362119120,1748003462700,-430.0,0.00020468,2]
[362119121,1748003462710,-430.0,0.00020468,2]
[362119122,1748003462720,-430.0,0.00020468,2]
[362119123,1748003462730,-577.75,0.00020468,2]
[362119124,1748003462740,-430.0,0.00020468,2]
[362119125,1748003462750,-430.0,0.00020468,2]
[362119126,1748003462760,-430.0,0.00020468,2]
[362119127,1748003462769,-430.0,0.00020468,2]
[362119128,1748003462779,-430.0,0.00020468,2]
[362119129,1748003462789,-430.0,0.00020468,2]
[362119130,1748003462799,-467.83,0.00020468,2]
[362119131,1748003462808,-160.21,0.00020468,2]
[362119132,1748003462818,-430.0,0.00020468,2]
[362119133,1748003462828,-430.0,0.00020468,2]
[362119134,1748003462837,-430.0,0.00020468,2]
[362119135,1748003462847,-430.0,0.00020468,2]
[362119136,1748003462856,-422.85710789,0.00020531,2]
[362119137,1748003462865,-12647.66147447,0.00020531,2]
[362119138,1748003462875,-212.48480548,0.00020531,2]
[362119139,1748003462885,-430.0,0.00020538,2]
[362119140,1748003462895,-430.0,0.00020538,2]
[362119141,1748003462903,-430.0,0.00020538,2]
[362119142,1748003462915,-1064.45,0.00020538,2]
[362119143,1748003462925,-430.0,0.00020538,2]
[362119144,1748003462935,-430.0,0.00020538,2]
[362119145,1748003462945,-430.0,0.00020538,2]
[362119146,1748003462955,-1011.58,0.00020538,2]
[362119147,1748003462964,-436.33,0.00020538,2]
[362119148,1748003462974,-430.0,0.00020538,2]
[362119149,1748003462983,-430.0,0.00020538,2]
[362119150,1748003462993,-430.0,0.00020539,2]
[362119151,1748003463003,-964.4,0.00020539,2]
[362119152,1748003463013,-430.0,0.00020539,2]
[362119153,1748003463023,-826.88,0.00020539,2]
[362119154,1748003463033,-430.0,0.00020539,2]
[362119155,1748003463044,-389.32631555,0.00020539,2]
[362119156,1748003463054,-430.0,0.00020539,2]
[362119157,1748003463064,-430.0,0.00020539,2]
[362119158,1748003463074,-430.0,0.00020539,2]
[362119159,1748003463085,-430.0,0.00020539,2]
[362119160,1748003463095,-459.74,0.00020539,2]
[362119161,1748003463105,-430.0,0.00020539,2]
[362119162,1748003463115,-430.0,0.00020539,2]
[362119163,1748003463125,-209.8,0.00020539,2]
[362119164,1748003463134,-430.0,0.00020539,2]
[362119165,1748003463144,-430.0,0.00020539,2]
[362119166,1748003463154,-430.0,0.00020539,2]
[362119167,1748003463165,-430.0,0.00020539,2]
[362119168,1748003463177,-361.40196904,0.00020539,2]
[362119169,1748003463187,-430.0,0.00020539,2]
[362119170,1748003463198,-170.25748449,0.00020545,2]
[362119171,1748003463209,-485.59997574,0.00020555,3]
[362119172,1748003463219,-501.05620535,0.00020661,2]
[362119173,1748003463230,-430.0,0.00020736,2]
[362119174,1748003463240,-470.0,0.00020736,2]
[362119175,1748003463251,-174.71450045,0.00020736,2]
[362119176,1748003463261,-430.0,0.00020736,2]
[362119177,1748003463271,-430.0,0.00020736,2]
[362119178,1748003463281,-512.90996234,0.00020736,2]
[362119179,1748003463292,-430.0,0.00020736,2]
[362119180,1748003463301,-165.55412834,0.00020736,2]
[362119181,1748003463312,-430.0,0.00020736,2]
[362119182,1748003463322,-430.0,0.00020736,2]
[362119183,1748003463331,-430.0,0.00020736,2]
[362119184,1748003463341,-556.90953153,0.00020736,2]
[362119185,1748003463351,-240.0,0.00020736,2]
[362119186,1748003463361,-237.34841907,0.00020736,2]
[362119187,1748003463371,-430.0,0.00020736,2]
[362119188,1748003463380,-430.0,0.00020736,2]
[362119189,1748003463390,-430.0,0.00020736,2]
[362119190,1748003463400,-205.75264606,0.00020736,2]
[362119191,1748003463415,-224.24735394,0.00020736,2]
[362119192,1748003463424,-430.0,0.00020736,2]
[362119193,1748003463434,-430.0,0.00020736,2]
[362119194,1748003463445,-430.0,0.00020736,2]
[362119195,1748003463454,-430.0,0.00020736,2]
[362119196,1748003463465,-430.0,0.00020736,2]
[362119197,1748003463474,-430.0,0.00020736,2]
[362119198,1748003463484,-430.0,0.00020736,2]
[362119199,1748003463493,-430.0,0.00020736,2]
[362119200,1748003463503,-430.0,0.00020736,2]
[362119201,1748003463513,-430.0,0.00020736,2]
[362119202,1748003463523,-216.34999516,0.00020736,2]
[362119203,1748003463532,-430.0,0.00020736,2]
[362119204,1748003463542,-430.0,0.00020736,2]
[362119205,1748003463552,-489.63,0.00020736,2]
[362119206,1748003463561,-430.0,0.00020736,2]
[362119207,1748003463571,-430.0,0.00020736,2]
[362119208,1748003463581,-470.71945119,0.00020736,2]
[362119209,1748003463590,-430.0,0.00020736,2]
[362119210,1748003463599,-430.0,0.00020736,2]
[362119211,1748003463610,-430.0,0.00020736,2]
[362119212,1748003463620,-430.0,0.00020736,2]
[362119213,1748003463629,-243.45571007,0.00020736,2]
[362119214,1748003463639,-540.0,0.00020736,2]
[362119215,1748003463649,-430.0,0.00020736,2]
[362119216,1748003463659,-171.7923627,0.00020736,2]
[362119217,1748003463672,-430.0,0.00020736,2]
[362119218,1748003463683,-430.0,0.00020736,2]
[362119219,1748003463693,-430.0,0.00020736,2]
[362119220,1748003463703,-410.46170922,0.00020736,2]
[362119221,1748003463713,-430.0,0.00020736,2]
[362119222,1748003463723,-338.49200306,0.00020736,2]
[362119223,1748003463734,-430.0,0.00020736,2]
[362119224,1748003463744,-430.0,0.00020736,2]
[362119225,1748003463753,-430.0,0.00020736,2]
[362119226,1748003463763,-430.0,0.00020736,2]
[362119227,1748003463773,-363.59377873,0.00020736,2]
[362119228,1748003463782,-370.0,0.00020736,2]
[362119229,1748003463792,-470.0,0.00020736,2]
[362119230,1748003463801,-410.0,0.00020736,2]
[362119231,1748003463810,-430.0,0.00020736,2]
[362119232,1748003463821,-510.65615027,0.00020736,2]
[362119233,1748003463832,-430.0,0.00020736,2]
[362119234,1748003463842,-363.77909721,0.00020736,2]
[362119235,1748003463851,-430.0,0.00020736,2]
[362119236,1748003463862,-430.0,0.00020736,2]
[362119237,1748003463872,-430.0,0.00020736,2]
[362119238,1748003463881,-430.0,0.00020736,2]
[362119239,1748003463891,-430.0,0.00020736,2]
[362119240,1748003463901,-403.93,0.00020736,2]
[362119241,1748003463911,-430.0,0.00020736,2]
[362119242,1748003463925,-432.24962641,0.00020736,2]
[362119243,1748003463936,-240.0,0.00020736,2]
[362119244,1748003463946,-430.0,0.00020736,2]
[362119245,1748003463956,-304.73976041,0.00020736,2]
[362119246,1748003463967,-252.98540738,0.00020736,2]
[362119247,1748003463977,-430.0,0.00020736,2]
[362119248,1748003463987,-430.0,0.00020736,2]
[362119249,1748003463997,-430.0,0.00020736,2]
[362119250,1748003464007,-430.0,0.00020736,2]
[362119251,1748003464017,-430.0,0.00020736,2]
[362119252,1748003464027,-430.0,0.00020736,2]
[362119253,1748003464037,-451.05,0.00020736,2]
[362119254,1748003464047,-430.0,0.00020736,2]
[362119255,1748003464057,-220.27508575,0.00020736,2]
[362119256,1748003464067,-530.0,0.00020736,2]
[362119257,1748003464077,-228.47139766,0.00020736,2]
[362119258,1748003464087,-430.0,0.00020736,2]
[362119259,1748003464097,-540.65,0.00020736,2]
[362119260,1748003464107,-430.0,0.00020736,2]
[362119261,1748003464117,-430.0,0.00020736,2]
[362119262,1748003464127,-578.50209117,0.00020736,2]
[362119263,1748003464138,-469.68,0.00020736,2]
[362119264,1748003464148,-430.0,0.00020736,2]
[362119265,1748003464159,-407.21,0.00020742,2]
[362119266,1748003464175,-430.0,0.00020742,2]
[362119267,1748003464186,-430.0,0.00020742,2]
[362119268,1748003464196,-430.0,0.00020742,2]
[362119269,1748003464207,-198.07901967,0.00020742,2]
[362119270,1748003464221,-231.92098033,0.00020742,2]
[362119271,1748003464232,-430.0,0.00020742,2]
[362119272,1748003464245,-430.0,0.00020742,2]
[362119273,1748003464255,-811.46,0.00020742,2]
[362119274,1748003464264,-430.0,0.00020742,2]
[362119275,1748003464276,-430.0,0.00020742,2]
[362119276,1748003464287,-430.0,0.00020742,2]
[362119277,1748003464297,-415.49517533,0.00020742,2]
[362119278,1748003464307,-430.0,0.00020742,2]
[362119279,1748003464318,-430.0,0.00020742,2]
[362119280,1748003464329,-430.0,0.00020742,2]
[362119281,1748003464339,-430.0,0.00020742,2]
[362119282,1748003464349,-430.0,0.00020742,2]
[362119283,1748003464359,-430.0,0.00020742,2]
[362119284,1748003464369,-430.0,0.00020742,2]
[362119285,1748003464380,-430.0,0.00020742,2]
[362119286,1748003464390,-458.52396975,0.00020742,2]
[362119287,1748003464400,-430.0,0.00020742,2]
[362119288,1748003464410,-153.97066582,0.00020742,2]
[362119289,1748003464423,-577.75,0.00020742,2]
[362119290,1748003464432,-343.38896061,0.00020742,2]
[362119291,1748003464442,-430.0,0.00020742,2]
[362119292,1748003464452,-430.0,0.00020742,2]
[362119293,1748003464462,-430.0,0.00020742,2]
[362119294,1748003464472,-430.0,0.00020742,2]
[362119295,1748003464482,-430.0,0.00020742,2]
[362119296,1748003464492,-467.83,0.00020742,2]
[362119297,1748003464502,-299.16,0.00020742,2]
[362119298,1748003464513,-175.1,0.00020742,2]
[362119299,1748003464523,-315.81,0.00020742,2]
[362119300,1748003464532,-430.0,0.00020742,2]
[362119301,1748003464542,-430.0,0.0002076,2]
[362119302,1748003464682,-1000.0,0.0002076,2]
[362119303,1748003464693,-430.0,0.00020761,2]
[362119304,1748003464702,-430.0,0.00020761,2]
[362119305,1748003464712,-346.66344884,0.00020761,2]
[362119306,1748003464723,-430.0,0.00020761,2]
[362119307,1748003464732,-341.94901891,0.00020761,2]
[362119308,1748003464742,-430.0,0.00020761,2]
[362119309,1748003464752,-430.0,0.00020761,2]
[362119310,1748003464762,-430.0,0.00020761,2]
[362119311,1748003464772,-430.0,0.00020761,2]
[362119312,1748003464782,-430.0,0.00020761,2]
[362119313,1748003464793,-132.98096097,0.00020761,2]
[362119314,1748003464812,-297.01903903,0.00020761,2]
[362119315,1748003464823,-430.0,0.00020761,2]
[362119316,1748003464833,-133.06639115,0.00020761,2]
[362119317,1748003464846,-296.93360885,0.00020761,2]
[362119318,1748003464856,-430.0,0.00020761,2]
[362119319,1748003464866,-430.0,0.00020761,2]
[362119320,1748003464876,-145.473381,0.00020761,2]
[362119321,1748003464887,-284.526619,0.00020761,2]
[362119322,1748003464897,-430.0,0.00020761,2]
[362119323,1748003464907,-470.0,0.00020761,2]